bitfinex/quotes_ETHUSD_20220213
["timestamp","ask_amount","ask_price","bid_price","bid_amount"]
[1644727132505,1.04189624,2920.3,2920.0,0.01038945]
[1644727133315,1.04189624,2920.3,2919.7,0.00324278]
[1644727133512,1.04189624,2920.3,2919.4,2.50324278]
[1644727133713,1.04189624,2920.3,2920.0,0.01038945]
[1644727134714,1.04189624,2920.3,2919.4,2.50324278]
[1644727134914,1.04189624,2920.3,2920.0,0.01038945]
[1644727135714,0.01264766,2920.2,2920.0,0.01038945]
[1644727136957,0.01264766,2920.2,2919.4,0.00324278]
[1644727136958,1.18902651,2920.1,2919.4,0.00324278]
[1644727137358,1.18902651,2920.1,2920.0,0.01038952]
[1644727138159,1.18902651,2920.1,2919.4,0.00324278]
[1644727138563,1.18902651,2920.1,2919.9,0.0103896]
[1644727139362,1.18902651,2920.1,2919.4,0.00324278]
[1644727139612,0.01264766,2920.2,2919.9,0.01038967]
[1644727140611,0.01264766,2920.2,2919.4,0.00324278]
[1644727140808,0.18374766,2920.2,2919.9,0.0103896]
[1644727141011,0.01264766,2920.2,2919.9,0.0103896]
[1644727141910,3.23935074,2920.2,2919.4,0.00324278]
[1644727142112,0.01264766,2920.2,2919.9,0.0103896]
[1644727143118,0.01264766,2920.2,2919.4,0.00324278]
[1644727143354,0.01264766,2920.2,2919.9,0.0103896]
[1644727144256,0.01264766,2920.2,2919.4,0.00324278]
[1644727144555,0.01264766,2920.2,2919.9,0.0103896]
[1644727144759,3.25752047,2920.2,2919.9,0.0103896]
[1644727145059,0.01264766,2920.2,2919.9,0.0103896]
[1644727145456,0.01264766,2920.2,2919.4,0.00324278]
[1644727145661,0.18374766,2920.2,2919.9,0.0103896]
[1644727146557,0.18374766,2920.2,2919.2,0.00324278]
[1644727146758,1.08872807,2919.8,2919.2,0.00324278]
[1644727148107,1.08872807,2919.8,2919.4,0.01038502]
[1644727149113,1.08872807,2919.8,2919.1,2.40324278]
[1644727149315,1.08872807,2919.8,2919.1,3.00324278]
[1644727149514,1.08872807,2919.8,2919.1,4.00324278]
[1644727150716,3.43071333,2919.7,2919.1,3.40324278]
[1644727150963,3.43071333,2919.7,2919.1,2.40324278]
[1644727152964,3.43071333,2919.7,2919.3,0.01037979]
[1644727153163,3.16286191,2919.7,2919.3,0.01037979]
[1644727153364,3.18635265,2919.7,2919.3,0.01037979]
[1644727153965,3.18635265,2919.7,2919.1,2.40324278]
[1644727154166,0.1711,2919.6,2919.4,0.01037965]
[1644727155010,0.1711,2919.6,2919.1,2.40324278]
[1644727155213,0.1711,2919.6,2919.4,0.01037965]
[1644727155412,0.18363401,2919.6,2919.4,0.01037965]
[1644727156220,0.18363401,2919.6,2919.1,2.40324278]
[1644727156812,0.18363401,2919.6,2918.3,0.25]
[1644727156813,0.94783401,2919.6,2918.3,0.25]
[1644727157015,1.07541796,2918.5,2918.2,1.1946]
[1644727157214,1.07541796,2918.5,2917.7,8.83072]
[1644727157418,1.07541796,2918.5,2917.7,7.48]
[1644727157716,1.07541796,2918.5,2918.2,0.01035444]
[1644727158562,1.07541796,2918.5,2917.8,1.0]
[1644727158764,1.07541796,2918.5,2917.8,0.95]
[1644727158960,1.07541796,2918.5,2918.2,0.01035444]
[1644727159762,1.07541796,2918.5,2917.8,0.95]
[1644727159763,3.22716268,2918.4,2917.8,0.95]
[1644727159961,0.93422019,2918.0,2917.8,0.95]
[1644727160160,3.74759259,2918.8,2918.2,0.01035444]
[1644727160960,3.74759259,2918.8,2917.8,0.95]
[1644727161164,0.84187262,2918.1,2917.7,7.48]
[1644727161372,3.27538314,2918.0,2917.9,0.04142311]
[1644727161766,3.20982428,2918.0,2917.9,0.04142311]
[1644727161966,3.17048276,2918.0,2917.9,0.04142311]
[1644727162213,0.84187262,2918.1,2917.4,2.65324278]
[1644727162412,0.84187262,2918.1,2917.8,0.01035501]
[1644727163115,3.22058132,2918.0,2917.8,0.01035501]
[1644727163313,3.32989347,2918.0,2917.8,0.01035501]
[1644727163514,3.32989347,2918.0,2917.4,2.40324278]
[1644727163715,3.32989347,2918.0,2917.8,0.01035508]
[1644727163920,3.21942475,2918.0,2917.8,0.01035508]
[1644727164714,3.21942475,2918.0,2917.5,0.00321076]
[1644727164916,4.19942475,2918.0,2917.8,0.01035508]
[1644727165216,3.48140849,2917.9,2917.8,0.01035508]
[1644727165856,3.48140849,2917.9,2916.9,0.00321076]
[1644727166056,0.9213125,2917.2,2916.9,0.00321076]
[1644727166260,3.48140849,2917.9,2916.7,0.00321076]
[1644727166566,3.48140849,2917.9,2916.8,0.00321076]
[1644727166567,0.1713,2917.8,2916.8,0.00321076]
[1644727167262,0.1713,2917.8,2917.2,0.00420224]
[1644727167464,0.95715349,2917.7,2917.2,0.00420224]
[1644727167664,3.72107724,2917.6,2917.2,0.00420224]
[1644727168263,3.72107724,2917.6,2916.8,0.00321076]
[1644727168463,1.07289722,2917.1,2916.8,0.02002168]
[1644727169466,1.07289722,2917.1,2916.8,0.00321076]
[1644727169705,1.07289722,2917.1,2916.8,0.00420274]
[1644727170504,1.07289722,2917.1,2917.0,0.03294429]
[1644727171612,0.01573208,2917.8,2917.0,0.03294429]
[1644727172606,1.18543514,2917.6,2917.0,0.03294429]
[1644727173465,0.01573208,2917.8,2917.2,0.01037807]
[1644727173667,0.01573208,2917.8,2917.3,0.494]
[1644727173864,0.01573208,2917.8,2917.4,0.00321076]
[1644727174064,0.01573208,2917.8,2917.5,0.494]
[1644727174463,0.01573208,2917.8,2917.5,0.50437764]
[1644727175466,0.92404349,2918.0,2917.5,0.494]
[1644727175665,0.92404349,2918.0,2917.6,0.00321076]
[1644727176164,3.3056,2918.1,2917.6,0.00321076]
[1644727176367,0.1713,2918.5,2917.6,0.00321076]
[1644727176568,8.8503,2918.6,2917.6,0.00321076]
[1644727176569,12.1053,2918.6,2917.6,0.00321076]
[1644727176773,15.30161537,2918.6,2917.6,0.30321076]
[1644727176966,12.1053,2918.6,2917.9,0.010377]
[1644727177412,8.2019,2918.6,2917.9,0.010377]
[1644727177613,3.4181442,2918.5,2917.9,0.010377]
[1644727177817,3.4181442,2918.5,2917.8,0.00321076]
[1644727178016,0.1713,2918.4,2917.6,0.00321076]
[1644727178215,0.1713,2918.5,2918.1,0.01037671]
[1644727178416,8.2019,2918.6,2918.1,0.01037671]
[1644727179014,8.2019,2918.6,2917.6,0.00321076]
[1644727179215,0.92356471,2918.1,2917.6,0.00321076]
[1644727179422,0.92356471,2918.1,2917.8,0.0415125]
[1644727180219,0.92356471,2918.1,2917.4,0.00321076]
[1644727180618,0.92356471,2918.1,2917.8,0.01037714]
[1644727181264,0.01828196,2918.5,2917.8,0.01037714]
[1644727181464,0.01828196,2918.5,2917.7,0.49721076]
[1644727181662,3.25993249,2918.5,2917.8,0.00321076]
[1644727181865,0.01828196,2918.5,2917.8,0.0135879]
[1644727182465,1.16041318,2918.3,2917.8,0.0135879]
[1644727182667,1.16041318,2918.3,2917.8,0.00321076]
[1644727182866,1.16041318,2918.3,2918.0,0.01037685]
[1644727183471,0.01828196,2918.5,2918.3,0.00113517]
[1644727184068,0.01828196,2918.5,2918.3,0.01151167]
[1644727184911,1.05739315,2918.4,2918.3,0.01151167]
[1644727185110,1.05739315,2918.4,2918.3,0.00113517]
[1644727185311,1.05739315,2918.4,2918.3,0.01151167]
[1644727186312,1.05739315,2918.4,2918.3,0.00113517]
[1644727188762,1.05610827,2918.4,2918.3,0.00113517]
[1644727189163,0.03208162,2918.5,2918.3,0.00113517]
[1644727189565,0.03208162,2918.5,2918.4,0.494]
[1644727195314,0.03208162,2918.5,2918.3,0.77243517]
[1644727196159,0.03208162,2918.5,2918.3,0.7822777]
[1644727196762,0.03208162,2918.5,2918.3,0.6109777]
[1644727197166,0.03208162,2918.5,2918.3,0.30113517]
[1644727197369,0.03208162,2918.5,2918.3,0.3109777]
[1644727198366,0.03208162,2918.5,2918.3,1.48927979]
[1644727198566,0.03208162,2918.5,2918.3,0.3109777]
[1644727199606,0.03208162,2918.5,2918.3,0.30113517]
[1644727199807,0.03208162,2918.5,2918.3,0.31096139]
[1644727200808,0.03208162,2918.5,2918.3,0.30113517]
[1644727201109,0.03208162,2918.5,2918.3,0.31096139]
[1644727201910,0.03208162,2918.5,2918.3,0.30113517]
[1644727202110,0.03208162,2918.5,2918.3,0.31096139]
[1644727203109,0.03208162,2918.5,2918.3,0.30113517]
[1644727203375,0.03208162,2918.5,2918.3,0.3109625]
[1644727204270,0.03208162,2918.5,2918.3,0.30113517]
[1644727204675,0.03208162,2918.5,2918.3,0.3109625]
[1644727205475,0.03208162,2918.5,2918.3,0.30113517]
[1644727205677,0.03208162,2918.5,2918.3,0.3109625]
[1644727206675,0.03208162,2918.5,2918.3,0.30113517]
[1644727206874,0.03208162,2918.5,2918.3,0.31096243]
[1644727207915,0.03208162,2918.5,2918.3,0.30113517]
[1644727208122,0.03208162,2918.5,2918.3,0.31096243]
[1644727209116,0.03208162,2918.5,2918.3,0.80319108]
[1644727209318,0.03208162,2918.5,2918.3,1.10319108]
[1644727209515,0.03208162,2918.5,2918.3,1.11301834]
[1644727210320,0.03208162,2918.5,2918.3,1.10319108]
[1644727210626,0.01392337,2918.4,2918.3,1.11301834]
[1644727210872,0.01392337,2918.4,2918.3,0.01096243]
[1644727211568,0.01255175,2918.4,2918.3,0.00113517]
[1644727211966,1.02343499,2918.4,2918.3,0.00113517]
[1644727214922,4.45477889,2918.4,2918.3,0.00113517]
[1644727215332,6.08366465,2918.4,2918.3,0.00113517]
[1644727218769,2.65232075,2918.4,2918.3,0.00113517]
[1644727218971,6.03981242,2918.4,2918.3,0.00113517]
[1644727219370,6.01072081,2918.4,2918.3,0.00113517]
[1644727220171,2.48102075,2918.4,2918.3,0.00113517]
[1644727220371,5.8353816,2918.4,2918.3,0.00113517]
[1644727220571,2.48102075,2918.4,2918.3,0.00113517]
[1644727221375,5.86334431,2918.4,2918.3,0.00113517]
[1644727221574,5.81145588,2918.4,2918.3,0.00113517]
[1644727221777,2.48102075,2918.4,2918.3,0.00113517]
[1644727223412,5.80124181,2918.4,2918.3,0.00113517]
[1644727224414,4.15,2918.3,2917.3,0.00321076]
[1644727224621,4.99857399,2918.0,2917.3,0.00321076]
[1644727224817,1.45758576,2917.9,2917.3,0.00321076]
[1644727225421,0.98027342,2917.8,2917.3,0.00321076]
[1644727225866,1.223,2917.7,2916.5,0.25552075]
[1644727226061,1.223,2917.7,2916.6,0.00321076]
[1644727226664,3.44356754,2917.6,2916.6,0.00321076]
[1644727227262,0.90234618,2916.8,2916.6,0.00321076]
[1644727227667,0.90234618,2916.8,2916.6,2.40645354]
[1644727227865,0.90234618,2916.8,2916.6,2.40324278]
[1644727228667,0.90234618,2916.8,2916.6,2.41363316]
[1644727229727,3.27151837,2917.2,2916.6,2.40324278]
[1644727229921,3.2218652,2917.2,2916.7,0.00321076]
[1644727230120,3.22014625,2917.2,2916.7,0.00321076]
[1644727230719,1.00082477,2916.8,2916.7,0.00321076]
[1644727230919,3.22014625,2917.2,2916.5,0.00230999]
[1644727231118,4.3787,2917.3,2916.8,0.01039002]
[1644727231921,4.3787,2917.3,2916.6,0.00321076]
[1644727232317,4.3787,2917.3,2916.9,0.01038988]
[1644727233119,4.3787,2917.3,2916.6,0.00321076]
[1644727233373,7.55397254,2917.6,2916.7,0.494]
[1644727233576,7.55397254,2917.6,2917.0,0.01038981]
[1644727233773,7.55397254,2917.6,2917.1,0.494]
[1644727233977,3.78947254,2917.6,2917.0,0.01038981]
[1644727234476,3.78947254,2917.6,2916.8,0.494]
[1644727234477,3.78947254,2917.6,2916.9,0.00321076]
[1644727234674,3.78947254,2917.6,2917.2,0.01038952]
[1644727235374,3.78947254,2917.6,2917.2,0.00945792]
[1644727235576,3.78947254,2917.6,2916.9,0.00321076]
[1644727235577,0.01353504,2917.2,2916.9,0.00321076]
[1644727235776,0.01353504,2917.2,2916.8,0.53556376]
[1644727236781,0.01353504,2917.2,2916.8,0.494]
[1644727236978,0.01353504,2917.2,2916.9,0.01038995]
[1644727237215,0.01353504,2917.2,2916.9,0.01360071]
[1644727238017,0.01353504,2917.2,2916.9,0.00321076]
[1644727238222,0.01353504,2917.2,2916.9,0.01038988]
[1644727238419,0.01353504,2917.2,2916.9,0.01360064]
[1644727238619,0.01353504,2917.2,2916.9,0.01038988]
[1644727239219,0.01353504,2917.2,2916.6,0.00321076]
[1644727239528,0.01353504,2917.2,2916.9,0.01038988]
[1644727240121,0.01353504,2917.2,2916.9,0.01360064]
[1644727240322,0.01353504,2917.2,2916.9,0.00321076]
[1644727240521,0.01353504,2917.2,2916.6,0.00321076]
[1644727240724,0.01353504,2917.2,2916.9,0.01038988]
[1644727241566,0.01353504,2917.2,2916.6,0.00321076]
[1644727241970,0.01353504,2917.2,2916.9,0.01038988]
[1644727242572,0.01353504,2917.2,2916.9,0.01360064]
[1644727242774,0.01353504,2917.2,2916.7,0.00321076]
[1644727243172,0.01353504,2917.2,2916.9,0.01038988]
[1644727243975,0.01353504,2917.2,2916.7,0.00321076]
[1644727244374,0.01353504,2917.2,2916.9,0.01038988]
[1644727245215,0.01353504,2917.2,2916.7,0.00321076]
[1644727245416,0.01353504,2917.2,2916.9,0.01038988]
[1644727246421,0.01353504,2917.2,2916.7,0.00321076]
[1644727246622,0.18483504,2917.2,2916.7,0.00321076]
[1644727246823,1.03437987,2917.0,2916.9,0.01038988]
[1644727247020,0.18483504,2917.2,2916.9,0.01038988]
[1644727247722,0.18483504,2917.2,2916.5,0.00230999]
[1644727247922,0.18483504,2917.2,2916.9,0.01038456]
[1644727248765,0.18483504,2917.2,2916.5,0.00230999]
[1644727248968,0.01353504,2917.2,2916.9,0.01038456]
[1644727250074,0.01353504,2917.2,2916.5,0.00230999]
[1644727250266,0.01353504,2917.2,2916.9,0.01038456]
[1644727251267,0.01353504,2917.2,2916.5,0.00230999]
[1644727251468,0.18483504,2917.2,2916.9,0.01038456]
[1644727252320,0.01353504,2917.2,2916.6,0.00321076]
[1644727252722,0.01353504,2917.2,2916.9,0.01038456]
[1644727253617,0.01353504,2917.2,2916.6,0.00321076]
[1644727253818,0.01353504,2917.2,2916.9,0.01038456]
[1644727254819,0.01353504,2917.2,2916.6,0.00321076]
[1644727255022,0.01353504,2917.2,2916.9,0.01038988]
[1644727255961,0.01353504,2917.2,2916.6,0.00321076]
[1644727256165,0.01353504,2917.2,2916.9,0.01038988]
[1644727257170,0.01353504,2917.2,2916.6,0.00321076]
[1644727257368,0.01353504,2917.2,2916.9,0.01038988]
[1644727258370,0.01353504,2917.2,2916.5,0.00230999]
[1644727258571,0.01353504,2917.2,2916.9,0.01038988]
[1644727259616,0.01248655,2917.2,2916.5,0.00230999]
[1644727259807,0.01248655,2917.2,2916.9,0.01038988]
[1644727260807,0.01248655,2917.2,2916.5,0.00230999]
[1644727261508,0.01248655,2917.2,2916.9,0.01038988]
[1644727262115,0.01248655,2917.2,2916.5,0.00230999]
[1644727262312,0.01248655,2917.2,2916.9,0.01038988]
[1644727263364,0.01248655,2917.2,2916.6,0.00321076]
[1644727263567,0.01248655,2917.2,2916.9,0.01038988]
[1644727264366,0.01248655,2917.2,2916.7,0.494]
[1644727264564,0.01248655,2917.2,2916.7,0.49721076]
[1644727264764,0.01248655,2917.2,2916.9,0.01038988]
[1644727265567,0.01248655,2917.2,2916.8,0.00321076]
[1644727265965,0.01248655,2917.2,2916.9,0.00973463]
[1644727266766,0.01248655,2917.2,2916.8,0.00321076]
[1644727267213,0.01248655,2917.2,2916.9,0.00973463]
[1644727268011,0.01248655,2917.2,2916.5,0.00230999]
[1644727268316,0.01248655,2917.2,2916.9,0.00973463]
[1644727269318,0.01248655,2917.2,2916.5,0.04125435]
[1644727269319,0.93839299,2917.1,2916.5,0.00230999]
[1644727269520,0.93839299,2917.1,2916.9,0.00973463]
[1644727270619,0.93839299,2917.1,2916.9,0.00979688]
[1644727270620,0.95108556,2917.1,2916.9,0.00979688]
[1644727271067,0.01269257,2917.1,2916.9,0.00979688]
[1644727271667,0.01269257,2917.1,2916.5,0.00230999]
[1644727271868,0.01269257,2917.1,2916.9,0.00979688]
[1644727272870,0.01269257,2917.1,2916.5,0.00230999]
[1644727273077,0.01269257,2917.1,2916.9,0.00979688]
[1644727273078,4.99857399,2917.0,2916.9,0.00979688]
[1644727273276,11.92218201,2917.0,2916.9,0.00979688]
[1644727273479,12.22218201,2917.0,2916.9,0.00979688]
[1644727273776,0.01959376,2916.8,2916.5,0.00230999]
[1644727273975,2.58146289,2916.7,2916.5,0.00230999]
[1644727274176,1.45830802,2916.6,2916.5,0.00230999]
[1644727274621,2.66305487,2916.7,2916.5,0.00230999]
[1644727275415,3.36147984,2916.6,2916.5,0.00230999]
[1644727276713,3.53277984,2916.6,2916.5,0.00230999]
[1644727277516,3.53277984,2916.6,2916.5,0.00231289]
[1644727277920,4.53277984,2916.6,2916.5,0.00231289]
[1644727279169,3.53277984,2916.6,2916.5,0.00231289]
[1644727280371,3.57105756,2916.6,2916.5,0.00231289]
[1644727281571,3.87105756,2916.6,2916.5,0.00231289]
[1644727281772,3.57105756,2916.6,2916.5,0.00231289]
[1644727282731,3.39975756,2916.6,2916.5,0.00231289]
[1644727285735,2.79684618,2916.6,2916.5,0.00231289]
[1644727285976,1.49684618,2916.6,2916.5,0.00231289]
[1644727286381,0.03827772,2916.6,2916.5,0.00231289]
[1644727286775,0.53227772,2916.6,2916.5,0.00231289]
[1644727287778,3.85704446,2916.6,2916.5,0.00231289]
[1644727287975,5.31562043,2916.6,2916.5,0.00231289]
[1644727288375,5.26562043,2916.6,2916.5,0.00231289]
[1644727288576,4.15,2916.5,2915.6,0.15552365]
[1644727288776,3.46293103,2916.4,2916.0,0.04154877]
[1644727288979,0.494,2916.5,2916.0,0.04154877]
[1644727289177,3.2,2916.4,2915.6,0.14707242]
[1644727289377,0.494,2916.5,2915.0,2.86562]
[1644727289378,3.25457656,2916.3,2915.0,2.86562]
[1644727289636,1.05951143,2915.6,2915.0,2.86562]
[1644727289822,1.1834,2916.2,2915.0,1.71482]
[1644727290018,1.1834,2916.2,2915.0,2.86462]
[1644727290820,0.99129359,2916.1,2915.0,2.86462]
[1644727292225,0.99129359,2916.1,2915.5,0.00413052]
[1644727293225,4.25562993,2916.1,2915.0,2.86462]
[1644727293477,4.26601487,2916.1,2915.7,0.01038669]
[1644727293676,4.22735726,2916.1,2915.7,0.01038669]
[1644727294479,4.21697232,2916.1,2915.0,10.34462]
[1644727294676,4.22735748,2916.1,2915.8,0.01038655]
[1644727294876,1.00167875,2916.1,2915.8,0.01038655]
[1644727295277,4.26796164,2916.1,2915.8,0.01038655]
[1644727295679,4.25757648,2916.1,2915.3,0.02217879]
[1644727295878,4.26796175,2916.1,2915.8,0.01038648]
[1644727296081,4.20945075,2916.1,2915.8,0.01038648]
[1644727296280,4.20666611,2916.1,2915.8,0.01038648]
[1644727296582,4.22751784,2916.1,2915.8,0.01038648]
[1644727296783,4.22751784,2916.1,2915.3,0.02217879]
[1644727296784,4.19832109,2916.1,2915.3,0.02217879]
[1644727297215,4.19832109,2916.1,2915.8,0.01038648]
[1644727297216,3.21741277,2916.1,2915.8,0.01038648]
[1644727297418,0.94467132,2916.0,2915.8,0.01038648]
[1644727297618,1.11597132,2916.0,2915.8,0.01038648]
[1644727298014,1.11597132,2916.0,2915.3,0.02217879]
[1644727298223,1.11597132,2916.0,2915.8,0.01038655]
[1644727298224,0.94467132,2916.0,2915.8,0.01038655]
[1644727299222,0.94467132,2916.0,2915.3,0.02217879]
[1644727299426,0.94467132,2916.0,2915.8,0.01038655]
[1644727299621,3.46077217,2916.1,2915.8,0.01038655]
[1644727299822,1.0651898,2916.0,2915.8,0.01038655]
[1644727300424,1.0651898,2916.0,2915.0,1.1498]
[1644727300623,1.0651898,2916.0,2915.8,0.01038655]
[1644727301664,1.0651898,2916.0,2915.1,0.04155518]
[1644727301665,1.0651898,2916.0,2915.0,1.1498]
[1644727301867,1.15826979,2915.4,2915.0,1.1498]
[1644727302072,10.55039435,2916.1,2914.7,2.54041378]
[1644727303072,10.55668008,2916.1,2914.7,0.137171]
[1644727303472,1.16696958,2915.4,2914.7,0.137171]
[1644727304276,1.16696958,2915.4,2914.9,0.01036128]
[1644727305318,1.16696958,2915.4,2914.8,0.00308921]
[1644727305515,1.16696958,2915.4,2915.0,0.01036114]
[1644727306518,1.16696958,2915.4,2914.8,0.00308921]
[1644727306725,3.5,2915.3,2915.1,0.01036107]
[1644727306924,0.6655,2915.3,2915.1,0.01036107]
[1644727307326,1.6655,2915.3,2915.1,0.01036107]
[1644727307519,0.6655,2915.3,2915.1,0.01036107]
[1644727307724,1.6655,2915.3,2914.8,0.00308921]
[1644727307919,1.12783837,2914.6,2914.4,0.00223749]
[1644727308368,1.12783837,2914.6,2914.5,0.04092649]
[1644727309671,1.07783837,2914.6,2914.5,0.04092649]
[1644727310874,1.07783837,2914.6,2914.4,0.00338228]
[1644727311075,1.07783837,2914.6,2913.6,0.13456683]
[1644727311277,3.25765306,2914.5,2913.6,0.13456683]
[1644727311681,3.25765306,2914.5,2913.6,0.08456683]
[1644727312124,0.89586183,2913.8,2913.6,0.08456683]
[1644727312321,0.89586183,2913.8,2913.3,2.38780961]
[1644727313922,0.89586183,2913.8,2913.4,0.00406287]
[1644727315029,0.89586183,2913.8,2913.7,0.01998799]
[1644727320322,0.17792696,2914.1,2913.7,0.01998799]
[1644727320528,0.00632696,2914.1,2913.7,0.01998799]
[1644727320923,3.085,2914.7,2913.7,0.01998799]
[1644727320924,6.585,2914.7,2913.7,0.01998799]
[1644727321121,6.585,2914.7,2913.7,0.51398799]
[1644727321323,0.00632728,2914.1,2913.7,0.51398799]
[1644727321526,0.00632728,2914.1,2913.7,0.01998799]
[1644727322124,0.88207045,2914.3,2913.7,0.01998799]
[1644727322322,0.01035544,2914.1,2913.8,0.01035683]
[1644727323372,0.88207045,2914.3,2913.7,0.01998799]
[1644727323573,0.01035555,2914.1,2913.8,0.01035676]
[1644727324575,3.23003527,2914.2,2913.7,0.01998799]
[1644727324774,3.23003527,2914.2,2913.8,0.00403562]
[1644727324975,0.88207045,2914.3,2913.8,0.00403562]
[1644727325674,0.88207045,2914.3,2913.2,1.2345]
[1644727325675,4.18959956,2914.3,2913.6,0.02191058]
[1644727325877,4.18959956,2914.3,2913.9,0.00403555]
[1644727326077,0.88207045,2914.3,2913.9,0.00403555]
[1644727326676,4.0981413,2914.3,2913.9,0.00403555]
[1644727326876,4.15428356,2914.3,2913.7,0.01036577]
[1644727327124,4.15428356,2914.3,2913.9,0.0103639]
[1644727327125,0.01036251,2914.2,2913.9,0.0103639]
[1644727328115,0.01036251,2914.2,2913.7,0.01036577]
[1644727328116,4.30483803,2914.3,2913.7,0.01036577]
[1644727328315,0.01036258,2914.2,2913.9,0.01036379]
[1644727329318,0.98709353,2913.8,2913.7,0.01036577]
[1644727330118,0.01036258,2914.2,2913.7,0.01036577]
[1644727330524,0.1715,2914.3,2913.7,0.01036577]
[1644727330721,0.01036254,2914.1,2914.0,0.02077998]
[1644727331781,1.09008134,2914.2,2914.0,0.02077998]
[1644727331982,1.09641583,2914.2,2914.0,0.02077998]
[1644727332784,1.09008134,2914.2,2914.0,0.02077998]
[1644727333189,1.09641583,2914.2,2914.0,0.02077998]
[1644727334089,1.09008134,2914.2,2914.0,0.02077998]
[1644727334287,1.09919922,2914.2,2914.0,0.02077998]
[1644727335320,1.08884197,2914.2,2914.0,0.02077998]
[1644727335523,1.09919922,2914.2,2914.0,0.02077998]
[1644727336526,1.08884197,2914.2,2914.0,0.02077998]
[1644727336726,1.09919922,2914.2,2914.0,0.02077998]
[1644727337628,1.08884197,2914.2,2914.0,0.02077998]
[1644727338025,1.09919922,2914.2,2914.0,0.02077998]
[1644727338973,1.08884197,2914.2,2914.0,0.02077998]
[1644727339171,1.09919922,2914.2,2914.0,0.02077998]
[1644727340069,1.08884197,2914.2,2914.0,0.02077998]
[1644727340471,1.09919922,2914.2,2914.0,0.02077998]
[1644727341373,1.08884197,2914.2,2914.0,0.02077998]
[1644727341577,1.09919922,2914.2,2914.0,0.02077998]
[1644727342421,1.08884197,2914.2,2914.0,0.02077998]
[1644727342823,1.09919922,2914.2,2914.0,0.02077998]
[1644727343726,1.08884197,2914.2,2914.0,0.02077998]
[1644727343933,3.3951853,2914.1,2914.0,0.02077998]
[1644727344529,1.09919922,2914.2,2914.0,0.02077998]
[1644727344927,1.08884197,2914.2,2914.0,0.02077998]
[1644727345127,1.09919922,2914.2,2914.0,0.02077998]
[1644727346072,1.08884197,2914.2,2914.0,0.02077998]
[1644727346467,0.01035725,2914.2,2914.0,0.02077998]
[1644727346874,0.01035725,2914.2,2914.0,0.76487998]
[1644727347375,3.085,2914.7,2914.0,0.76487998]
[1644727347674,0.01035725,2914.2,2914.1,0.00307958]
[1644727347873,0.01035725,2914.2,2914.0,0.02077998]
[1644727348472,4.24268859,2914.7,2914.0,0.02077998]
[1644727348976,0.01035725,2914.2,2914.0,0.02077998]
[1644727349650,4.24268859,2914.7,2914.0,0.02077998]
[1644727350042,0.01035725,2914.2,2914.0,0.02077998]
[1644727350443,0.01035725,2914.2,2914.1,0.0026378]
[1644727350841,4.24268859,2914.7,2914.1,0.0026378]
[1644727351042,7.50180359,2914.7,2914.1,0.0026378]
[1644727351246,0.01035718,2914.3,2914.1,0.0026378]
[1644727352045,7.58404265,2914.7,2914.1,0.0026378]
[1644727352247,1.45949472,2914.6,2914.1,0.0026378]
[1644727352449,0.01035711,2914.3,2914.1,0.0026378]
[1644727353251,0.1715,2914.6,2914.1,0.0026378]
[1644727353473,1.45953776,2914.5,2914.1,0.0026378]
[1644727353677,1.00119291,2914.2,2914.1,0.0026378]
[1644727354275,0.01035711,2914.3,2914.1,0.0026378]
[1644727354475,1.2293,2914.4,2914.1,0.0026378]
[1644727354879,0.01035718,2914.3,2914.1,0.0026378]
[1644727355379,3.23009908,2914.3,2914.1,0.0026378]
[1644727355581,1.45963906,2914.2,2914.1,0.0026378]
[1644727355778,1.45963906,2914.2,2914.0,0.02077998]
[1644727355779,5.0766307,2914.2,2914.0,0.00263883]
[1644727355979,3.61699164,2914.2,2914.0,0.00263883]
[1644727356381,0.01035711,2914.3,2914.0,0.00263883]
[1644727356579,1.07225528,2914.1,2914.0,0.00263883]
[1644727356977,1.2293,2914.4,2914.0,0.00263883]
[1644727357227,0.01035732,2914.2,2914.0,0.00263883]
[1644727357827,0.00939353,2914.2,2914.0,0.00263883]
[1644727358227,1.10789285,2914.3,2914.0,0.00263883]
[1644727358934,1.45955659,2914.2,2914.0,0.00263883]
[1644727359529,1.40955659,2914.2,2914.0,0.00263883]
[1644727359729,1.10789285,2914.3,2914.0,0.00263883]
[1644727360733,1.11825003,2914.3,2914.0,0.00263883]
[1644727360971,0.01035718,2914.3,2914.0,0.00263883]
[1644727361773,4.297,2914.7,2914.0,0.00263883]
[1644727361973,5.48029122,2914.7,2914.0,0.00263883]
[1644727362174,4.297,2914.7,2914.0,0.00263883]
[1644727363275,0.00633377,2914.5,2914.0,0.00263883]
[1644727364182,1.2881445,2914.8,2914.0,0.00263883]
[1644727364378,0.00633377,2914.4,2914.0,0.00263883]
[1644727365425,0.13819996,2914.8,2914.0,0.00263883]
[1644727365628,0.01035185,2914.3,2914.0,0.00263883]
[1644727365823,0.01035185,2914.3,2914.1,0.02128682]
[1644727366226,0.01035185,2914.3,2914.1,1.00908682]
[1644727366629,4.1914,2915.2,2914.1,1.00908682]
[1644727366832,4.1914,2915.2,2914.2,1.35480958]
[1644727366833,0.01035185,2914.3,2914.2,1.35480958]
[1644727367426,0.01035185,2914.3,2914.2,2.60604643]
[1644727367825,3.0191,2915.2,2914.2,3.60296685]
[1644727368025,0.01035178,2914.4,2914.2,3.36436685]
[1644727368227,0.01035178,2914.4,2914.2,3.36744643]
[1644727369075,3.0191,2915.2,2914.2,3.06744643]
[1644727369278,0.01035171,2914.4,2914.2,2.30604643]
[1644727369675,0.01035171,2914.4,2914.2,1.35480958]
[1644727370079,3.0191,2915.2,2914.2,1.35480958]
[1644727370279,3.0191,2915.2,2914.3,0.1715]
[1644727370480,3.0191,2915.2,2914.3,0.6655]
[1644727370481,0.01035171,2914.4,2914.3,0.6655]
[1644727370879,0.01035171,2914.4,2914.3,0.9655]
[1644727371079,0.01035171,2914.4,2914.3,0.6655]
[1644727371280,3.0191,2915.2,2914.3,0.6655]
[1644727371780,0.01035165,2914.5,2914.3,0.6655]
[1644727371982,0.01035165,2914.5,2914.3,0.494]
[1644727372623,0.1715,2915.1,2914.3,0.494]
[1644727373025,0.01035158,2914.5,2914.3,0.494]
[1644727373725,0.86203199,2914.9,2914.3,0.494]
[1644727374025,0.01035158,2914.5,2914.3,0.6655]
[1644727374226,0.01035158,2914.5,2914.3,0.494]
[1644727375026,0.86203199,2914.9,2914.3,0.494]
[1644727375227,0.01035158,2914.5,2914.4,0.02313024]
[1644727376170,0.86203199,2914.9,2914.4,0.02313024]
[1644727376371,0.01035151,2914.6,2914.4,0.02313024]
[1644727377279,0.86203199,2914.9,2914.4,0.02313024]
[1644727377473,0.01035144,2914.6,2914.4,0.02313024]
[1644727378573,0.86203199,2914.9,2914.4,0.02313024]
[1644727378776,0.01035144,2914.6,2914.4,0.02313024]
[1644727379824,0.86203199,2914.9,2914.4,0.02313024]
[1644727380020,0.01035144,2914.6,2914.3,0.00176693]
[1644727380918,0.86203199,2914.9,2914.3,0.00176693]
[1644727381318,0.01035151,2914.6,2914.3,0.00176693]